Cogmind - Beta 12 @@@ ROGUE MODE // 2023.11.04 @ 03:49:20 Player: Rainynight Result: Destroyed by as-62009 with Assembled F-torch Performance ------------- Evolutions (0) 0 Regions Visited (4) 800 Robots Destroyed (12) 60 Value Destroyed (279) 279 Prototype IDs (26) 520 Alien Tech Used (0) 0 Bonus (300) 300 TOTAL SCORE: 1959 Bonus ------- Aligned with FarCom 300 Cogmind --------- Core Integrity 0/250 Matter 268/300 Energy 100/100 System Corruption 12% Temperature Warm (147) Movement Treading (240) Ox1 Location -9/Mines Parts ------- > --- POWER (1) -------- (None) > --- PROPULSION (2) --- Light Treads Light Treads > --- UTILITY (2) ------ High-capacity Storage Unit Medium Armor Plating > --- WEAPON (2) ------- Heavy Assault Rifle Improved Assault Rifle > --- INVENTORY (20) --- Reinforced Deuterium Engine Light Fission Core Light Fission Core Light Treads High-capacity Storage Unit Medium Armor Plating Medium Armor Plating Hardened Light Armor Plating Hardened Light Armor Plating Hardened Light Armor Plating Hardened Light Armor Plating Skeleton Box Heavy Assault Rifle Heavy Assault Rifle Peak State ------------ > --- POWER ------------ Light Ion Engine > --- PROPULSION ------- Light Treads Light Treads > --- UTILITY ---------- High-capacity Storage Unit Medium Armor Plating > --- WEAPON ----------- Improved Assault Rifle Improved Assault Rifle > --- INVENTORY -------- Reinforced Deuterium Engine Light Fission Core Light Fission Core High-capacity Storage Unit Medium Armor Plating Medium Armor Plating Medium Armor Plating Hardened Light Armor Plating Hardened Light Armor Plating Hardened Light Armor Plating Hardened Light Armor Plating Skeleton Box Heavy Assault Rifle Heavy Assault Rifle Heavy Assault Rifle [Rating: 16] Favorites ----------- Power Light Ion Engine Engine Light Ion Engine Propulsion Light Treads Treads Light Treads Wheel Compact Wheel Utility Medium Armor Plating Device Heat Sink Storage Medium Storage Unit Protection Medium Armor Plating Weapon Improved Assault Rifle Energy Gun Beam Rifle Ballistic Gun Improved Assault Rifle Build | -11 -10 -10 -10 -9 ------- Run | Jun Mat Min Exi Min Slots Evolved . | . . . . . Power . | . . . . . Propulsion . | . . . . . Utility . | . . . . . Weapon . | . . . . . Parts Attached 25 | 6 12 1 2 4 Power 3 | 1 . 1 . 1 Engine 3 | 1 . 1 . 1 Core . | . . . . . Reactor . | . . . . . Propulsion 6 | 2 3 . . 1 Treads 4 | 1 2 . . 1 Leg . | . . . . . Wheel 2 | 1 1 . . . Hover . | . . . . . Flight . | . . . . . Utility 9 | 1 5 . 2 1 Device 1 | . 1 . . . Storage 3 | 1 1 . 1 . Processor . | . . . . . Hackware . | . . . . . Protection 5 | . 3 . 1 1 Artifact . | . . . . . Weapon 7 | 2 4 . . 1 Energy Gun 2 | . 2 . . . Energy Cannon . | . . . . . Ballistic Gun 5 | 2 2 . . 1 Ballistic Cannon . | . . . . . Launcher . | . . . . . Special Weapon . | . . . . . Impact Weapon . | . . . . . Slashing Weapon . | . . . . . Piercing Weapon . | . . . . . Special Melee Weapon . | . . . . . Unidentified Prototypes 1 | . 1 . . . Parts Lost 4 | . . . . 4 Power 2 | . . . . 2 Propulsion . | . . . . . Utility 1 | . . . . 1 Weapon 1 | . . . . 1 Highest Loss Streak 2 | . . . . 2 To Critical Strikes . | . . . . . Average Slot Usage (%) 98 | . 96 100 100 94 Engine 13 | . 14 14 14 9 Treads 26 | . 23 28 28 28 Wheel 1 | . 4 . . . Device 2 | . 9 . . . Storage 14 | . 14 14 14 14 Protection 11 | . 2 14 14 14 Energy Gun 2 | . 9 . . . Ballistic Gun 25 | . 17 28 28 26 Naked Turns . | . . . . . Heaviest Build 58 | 14 28 28 56 58 Greatest Support 40 | 16 40 40 40 40 Greatest Overweight (x) 2 | 1 2 . 1 1 Average Overweight (x) . | . . . . 1 Largest Inventory Capacity 20 | 8 10 10 20 20 Average Capacity 14 | 7 9 10 16 20 Most Carried 16 | 4 10 10 15 16 Average Carried 10 | 1 9 10 11 14 Final Capacity 20 | 8 10 10 20 20 Final Carried 15 | 4 10 10 15 14 Class Distribution -------------------- 100% | Mutant Dominant Class ---------------- Mutant | -10/Materials Mutant | -10/Mines Mutant | -10/Exiles Mutant | -9/Mines Resources | -11 -10 -10 -10 -9 ----------- Run | Jun Mat Min Exi Min Matter Collected 649 | 235 159 74 . 181 Remotely . | . . . . . Salvage Created 482 | . 160 89 . 233 Parts 25 | . 8 12 . 5 Haulers Intercepted . | . . . . . Recyclers Shooed . | . . . . . Parts Field Recycled . | . . . . . Retrieved Matter . | . . . . . Parts Self-Destructed . | . . . . . Prevented . | . . . . . Kills | -11 -10 -10 -10 -9 ------- Run | Jun Mat Min Exi Min Combat Hostiles Destroyed 20 | . 4 6 . 10 Guns 19 | . 3 6 . 10 Classes Destroyed 4 | . 1 1 . 2 Swarmer 6 | . . 6 . . Grunt 5 | . 4 . . 1 Brawler 1 | . . . . 1 Assembled 8 | . . . . 8 Best Kill Streak 8 | . 2 3 . 8 Combat Bots Only 8 | . 2 3 . 8 Max Kills in Single Turn 2 | . 1 1 . 2 Gunslinging 1 | . . . . 1 Exploded . | . . . . . Melee . | . . . . . Uniques/NPCs Destroyed . | . . . . . Combat | -11 -10 -10 -10 -9 -------- Run | Jun Mat Min Exi Min Damage Taken 1202 | . 234 85 . 883 Core 252 | . 89 . . 163 Absorbed by Shields . | . . . . . Core Remaining (%) 100 | 100 . . . . Volleys Fired 54 | . 22 7 . 25 Largest 2 | . 2 2 . 2 Hottest 112 | . 112 46 . 46 Shots Fired 106 | . 44 14 . 48 Gun 106 | . 44 14 . 48 Cannon . | . . . . . Launcher . | . . . . . Special . | . . . . . Kinetic 86 | . 24 14 . 48 Thermal 20 | . 20 . . . Explosive . | . . . . . Electromagnetic . | . . . . . Robot Hit Streak 17 | . 10 5 . 17 Robot Miss Streak 3 | . 3 3 . 2 Penetration Max . | . . . . . Secondary Targets 2 | . . . . 2 Max Gunslinging Chain 1 | . . . . 1 Shots Hit Robots 77 | . 28 8 . 41 Core Hits 31 | . 6 6 . 19 Critical Kills 1 | . . . . 1 Critical Parts Destroyed . | . . . . . Critical Strikes 1 | . . . . 1 Destroy 1 | . . . . 1 Melee Attacks . | . . . . . Impact . | . . . . . Slashing . | . . . . . Piercing . | . . . . . Sneak Attacks . | . . . . . Combat Hostiles . | . . . . . Follow-up Attacks . | . . . . . Damage Inflicted 1105 | . 381 113 . 611 Guns 1103 | . 381 113 . 609 Cannons . | . . . . . Explosions . | . . . . . Melee . | . . . . . Ramming 2 | . . . . 2 Kinetic 929 | . 207 113 . 609 Thermal 174 | . 174 . . . Explosive . | . . . . . Electromagnetic . | . . . . . Impact . | . . . . . Slashing . | . . . . . Piercing . | . . . . . Highest Corruption 12 | . . . . 12 Average Corruption 7 | . . . . 7 Corruption Purged . | . . . . . Corruption Blocked . | . . . . . Effects 5 | . . . . 5 Heat Flow Errors 2 | . . . . 2 Data Loss (major) 2 | . . . . 2 Weapon Failures 1 | . . . . 1 Overload Shots . | . . . . . Overflow Damage . | . . . . . Projectiles . | . . . . . Explosions . | . . . . . Melee . | . . . . . Knockbacks . | . . . . . Impact . | . . . . . Kinetic . | . . . . . Secondary . | . . . . . Self-Inflicted Damage . | . . . . . Shots . | . . . . . Rammed 2 | . . . . 2 Targets Rammed 2 | . . . . 2 Kicked . | . . . . . Crushed . | . . . . . Highest Temperature 228 | . 228 . . 180 Average Temperature 88 | . 93 . . 84 Received Heat Transfer 431 | . 135 . . 296 Siege Activations . | . . . . . Robots Corrupted . | . . . . . Combat Hostiles . | . . . . . Parts Fried . | . . . . . Impact Corruptions . | . . . . . Robots Melted 1 | . 1 . . . Combat Hostiles 1 | . 1 . . . Parts Melted 2 | . 2 . . . Heat Transferred 444 | . 444 . . . Parts Sabotaged . | . . . . . Parts Stolen . | . . . . . Parts Stripped . | . . . . . Power Chain Reactions . | . . . . . Missiles Intercepted . | . . . . . Alert | -11 -10 -10 -10 -9 ------- Run | Jun Mat Min Exi Min Peak Influence 143 | . 80 143 . 50 Initial 3 | . . 3 . . Average 53 | . 27 119 . 34 Maximum Alert Level . | . . . . . Low Security (%) 100 | 100 100 100 . 100 Level 1 . | . . . . . Level 2 . | . . . . . Level 3 . | . . . . . Level 4 . | . . . . . Level 5 . | . . . . . High Security . | . . . . . Max Security . | . . . . . Squads Dispatched 2 | . 2 . . . Investigation 2 | . 2 . . . Extermination . | . . . . . Reinforcement . | . . . . . Assault . | . . . . . Garrison . | . . . . . Intercept . | . . . . . Searches Triggered . | . . . . . Construction Impeded . | . . . . . Haulers Reinforced . | . . . . . Active Scanning Responses . | . . . . . Cargo Convoy Interrupts . | . . . . . Stealth | -11 -10 -10 -10 -9 --------- Run | Jun Mat Min Exi Min Distress Signals . | . . . . . Communications Jammed . | . . . . . Distress Signals . | . . . . . Times Spotted 31 | . 7 6 . 18 Peak Tracking Total 16 | . 3 3 . 16 Tactical Retreats 1 | . . . . 1 Traps | -11 -10 -10 -10 -9 ------- Run | Jun Mat Min Exi Min Traps Triggered 1 | . 1 . . . Indirectly . | . . . . . Trap Hack Attempts . | . . . . . Triggered . | . . . . . Disarmed . | . . . . . Reprogrammed . | . . . . . Reused . | . . . . . Traps Extracted . | . . . . . Installed . | . . . . . Triggered . | . . . . . Machines | -11 -10 -10 -10 -9 ---------- Run | Jun Mat Min Exi Min Machines Disabled . | . . . . . Max in Single Turn . | . . . . . Machines Repaired . | . . . . . Machines Sabotaged . | . . . . . Overloaded Fab Kills . | . . . . . Hacking | -11 -10 -10 -10 -9 --------- Run | Jun Mat Min Exi Min Machines Accessed 5 | . 3 . 2 . Terminals 2 | . 2 . . . Fabricators . | . . . . . Repair Stations . | . . . . . Recycling Units 1 | . 1 . . . Scanalyzers . | . . . . . Garrison Access . | . . . . . Total Hacks 12 | . 10 . 2 . Successful 6 | . 4 . 2 . Failed 6 | . 6 . . . Catastrophic . | . . . . . Database Lockouts . | . . . . . Manual 7 | . 6 . 1 . Terminals 9 | . 9 . . . Fabricators . | . . . . . Repair Stations . | . . . . . Recycling Units 1 | . 1 . . . Scanalyzers . | . . . . . Garrison Access . | . . . . . Terminal Hacks 5 | . 3 . 2 . Record 1 | . . . 1 . Prototype ID Bank 1 | . 1 . . . Unreport Threat 1 | . 1 . . . Locate Traps 1 | . 1 . . . EX-Prototype ID Bank 1 | . . . 1 . Fabricator Hacks . | . . . . . Repair Station Hacks . | . . . . . Recycling Unit Hacks . | . . . . . Scanalyzer . | . . . . . Garrison Access Hacks . | . . . . . Unauthorized Hacks 1 | . 1 . . . Terminals . | . . . . . Fabricators . | . . . . . Repair Stations . | . . . . . Recycling Units 1 | . 1 . . . Tunnel 1 | . 1 . . . Scanalyzers . | . . . . . Garrison Access . | . . . . . Data Cores Recovered . | . . . . . Used . | . . . . . Hacking Detections 2 | . 2 . . . Full Trace Events 2 | . 2 . . . Feedback Events . | . . . . . Feedback Blocked . | . . . . . Robot Schematics Acquired . | . . . . . Robots Built . | . . . . . Authchips . | . . . . . Time . | . . . . . Total Robot Build Rating . | . . . . . Part Schematics Acquired . | . . . . . Parts Built . | . . . . . Authchips . | . . . . . Time . | . . . . . Total Part Build Rating . | . . . . . Parts Repaired . | . . . . . Time . | . . . . . Parts Recycled . | . . . . . Recycled Matter . | . . . . . Retrieved Matter . | . . . . . Retrieved Components . | . . . . . Parts Scanalyzed . | . . . . . Part Schematics Acquired . | . . . . . Parts Damaged . | . . . . . Bothacking | -11 -10 -10 -10 -9 ------------ Run | Jun Mat Min Exi Min Used RIF Installer . | . . . . . Robots Hacked . | . . . . . Non-combat . | . . . . . Combat . | . . . . . Robot Hacks Applied . | . . . . . Relay Couplers Released . | . . . . . Fabnet Peak Effective % . | . . . . . Robots Rewired . | . . . . . Allies Hacked . | . . . . . Hacks Repelled . | . . . . . Allies | -11 -10 -10 -10 -9 -------- Run | Jun Mat Min Exi Min Total Allies . | . . . . . Largest Group . | . . . . . Highest-Rated Group . | . . . . . Highest-Rated Ally . | . . . . . Total Orders . | . . . . . Ally Attacks . | . . . . . Total Damage . | . . . . . Kills . | . . . . . Allies Corrupted . | . . . . . Allies Melted . | . . . . . Intel | -11 -10 -10 -10 -9 ------- Run | Jun Mat Min Exi Min Robot Analysis Total . | . . . . . Derelict Logs Recovered 1 | . . 1 . . Drone Launches . | . . . . . Drone Recoveries . | . . . . . Exploration | -11 -10 -10 -10 -9 ------------- Run | Jun Mat Min Exi Min Turns Passed 1917 | 46 451 248 1070 102 Spaces Moved 937 | 35 248 137 509 8 Core 4 | 4 . . . . Treads 807 | . 153 137 509 8 Legs . | . . . . . Wheels 126 | 31 95 . . . Hover . | . . . . . Flight . | . . . . . Fastest Speed 50 | 50 95 160 160 240 Average Speed 179 | 97 140 160 208 240 Slowest Speed 240 | 100 240 160 240 240 Overloaded Moves . | . . . . . Propulsion Burnouts . | . . . . . Robots Hopped . | . . . . . Cave-ins Triggered . | . . . . . Exploration Rate (%) 30 | 3 45 40 60 4 Regions Visited 4 Branch Regions 3 Pre-discovered Areas 2 | . 1 . 1 . Known Exits Taken 1 | . . 1 . . Unknown Exits Taken 3 | 1 1 . 1 . Scrap Searched . | . . . . . Spaces Dug . | . . . . . Terrain Destroyed . | . . . . . Melee . | . . . . . Projectile . | . . . . . AOE . | . . . . . Terrain Rammed . | . . . . . Walls Destroyed . | . . . . . Machines Disabled . | . . . . . Actions | -11 -10 -10 -10 -9 --------- Run | Jun Mat Min Exi Min Total 1064 | 44 309 152 520 39 Wait 10 | . 3 7 . . Move 933 | 34 247 136 508 8 Hop . | . . . . . Pick Up 23 | 4 12 . 7 . Fast Attach 14 | 6 7 . . 1 Attach 3 | . 1 . . 2 Detach 1 | . 1 . . . Swap 8 | . 4 1 2 1 Drop 16 | . 12 1 3 . Fire 54 | . 22 7 . 25 Melee . | . . . . . Ram . | . . . . . Kick . | . . . . . Crush 2 | . . . . 2 Escape Stasis . | . . . . . Rewire . | . . . . . Trap . | . . . . . Miscellaneous . | . . . . . Route ------- -11/Junkyard -10/Materials (discovered 3 exits: [*Mat] / [*Min x2]) -10/Mines -10/Exiles -9/Mines History --------- Turn | Location | Event 23 | -11/Junkyard | Discovered new exit (range 15) 47 | -11/Junkyard | Entered Materials 47 | -10/Materials | Discovered new exit (range 15) 306 | -10/Materials | Discovered new exit (range 16) 313 | -10/Materials | Build established: Mutant 476 | -10/Materials | Discovered new exit (range 15) 498 | -10/Materials | Entered Mines 543 | -10/Mines | Identified exit to Exiles 739 | -10/Mines | Deemed a non-threat by the Exiles lab entrance 746 | -10/Mines | Entered Exiles 786 | -10/Exiles | Met 8R-AWN 812 | -10/Exiles | Met EX-HEX 857 | -10/Exiles | Met EX-BIN 881 | -10/Exiles | Aligned with FarCom system 882 | -10/Exiles | Given EX-Vault access code 919 | -10/Exiles | Opened EX-Vault 932 | -10/Exiles | Found Skeleton Box 967 | -10/Exiles | Warned to stay clear of 0b10 Research branches 1010 | -10/Exiles | Met EX-DEC 1020 | -10/Exiles | Learned location of Zion (-6) 1547 | -10/Exiles | Found 0b10 Alert Chip 1780 | -10/Exiles | Discovered new exit (range 14) 1816 | -10/Exiles | Left Exiles lab with Skeleton Box 1816 | -10/Exiles | Entered Mines 1839 | -9/Mines | Assembled infested the area 1844 | -9/Mines | Assisted by a Guerilla fighting off Assembled 1857 | -9/Mines | Core integrity fell below 50% 1873 | -9/Mines | Core integrity fell below 20% 1879 | -9/Mines | System corruption reached 10% 1918 | -9/Mines | Destroyed by as-62009 with Assembled F-torch Last Messages --------------- 01874_ as-36302 suffers critical hit (Destroy). 01874_ as-36302 destroyed. 01878_ Imp. Assault Rifle destroyed. 01878_ System corrupted by crushing effect (+4). 01880_ as-09632 destroyed. 01881_ Acquired 20 matter. 01883_ as-81138 destroyed. 01884_ Acquired 14 matter. 01897_ System corrupted: Substantial component data lost. 01898_ as-77870 destroyed. 01899_ Acquired 19 matter. 01899_ Critical hit (Burn: +80). 01904_ System corrupted: Imp. Assault Rifle jammed. 01904_ as-16762 destroyed. 01905_ Acquired 16 matter. 01910_ Ion Engine destroyed. 01910_ Destroyed Asb. Hover Unit. 01912_ System corrupted: Heat flow error (+129). 01913_ as-95368 destroyed. 01914_ Acquired 19 matter. Map ----- +----------------------------------------------------+ | ???????????????????????????????? | | ???????????????????????????????? | | ???????????????????????????????? | | ???????????????????????????????? | | ???????????????????????????????? | | ???????????????????????????????? | | ???????????????????????????????? | | ???????????????????????????????? | | ???????????????????????????????? | | ???????????????????????????????? | | ???????????????????????????????? | | ???????????????????????????????? | | ???????????????????????????????? | | ???????????????????????????????? | | ???????????????????????????????? | | ???????????????????????????????? | | ???????????????????????????????? | | ???????????????????????????????? | | ???????????????????????????????? | | ???????????????????????????????? | | ???????????????????????????????? | | ???????????????????????????????? | | ???????????????????????????????? | | ???????????????????????????????? | | ???###########?????????????????? | | ???# %a@ % #?????????????????? | | ???# a###### #?????????????????? | | ?### ###??????????????????????? | | ?# #### ##????????????????? | | ?# / %]% %% #????????????? | | ?# [## ?????????? | | ?# = #??##### ?????????? | | ?########??????????????????????? | | ???????????????????????????????? | | ???????????????????????????????? | | ???????????????????????????????? | | ???????????????????????????????? | | ???????????????????????????????? | | ???????????????????????????????? | | ???????????????????????????????? | | ???????????????????????????????? | | ???????????????????????????????? | | ???????????????????????????????? | | ???????????????????????????????? | | | | | | | | | | | | | +----------------------------------------------------+ Best States ------------- Heat Dissipation 35 Energy Generation 10 Energy Capacity 250 Matter Stores 300 Matter Capacity 300 Sight Range 16 Terrain Scan Density 10 Armor Coverage 225 Evasion (%) 41 Recoil Reduction 2 Item Schematics ----------------- None Robot Schematics ------------------ None Fabricated ------------ Nothing Alien Tech Used ----------------- None Achievements -------------- None Challenges ------------ None Game ------ Seed SpikedSpreadAutohacker Manual? 0 Play Time 00:11:40 Cumulative 313.6 hours Start 2023.11.04 @ 03:37:47 End 2023.11.04 @ 03:49:20 Sessions 1 Manual Loads 0 Difficulty Rogue Special Mode None Game No. 344 Rogue 317 Adventurer 2 Explorer 25 Win Type - Total 20 Types 17/1/0/2/0/0/0/0/0 Lore% 75 Gallery% 82 Achievement% 79 Wizard Run 0 Options --------- ASCII 1 Keyboard 1 Movement Numpad Keybinds 1 Fullscreen 1 Font 18/X11 Map View 76x50 Tactical HUD 1 Map Filters NONE Filters NONE Steam X RUN: 86867720-e52f-4979-b568-f6e3a839b138